[Event "Championnat d'Europe Rapide"]
[Date "2024.12.08"]
[White "Dragicevic, Drazen"]
[Black "Schneider, Ilja"]
[WhiteElo "2332"]
[BlackElo "2414"]
[Round "8.34"]
[Result "0-1"]
[TimeControl "900+10"]

1. Nf3 {[%emt 00:00:02] [%clk 00:15:17]} Nf6 {[%emt 00:00:06] [%clk 00:15:14]}
2. g3 {[%emt 00:00:03] [%clk 00:15:24]} b5 {[%emt 00:00:36] [%clk 00:14:48]} 3.
Na3 {[%emt 00:01:00] [%clk 00:14:34]} a6 {[%emt 00:00:24] [%clk 00:14:34]} 4. c4
{[%emt 00:00:02] [%clk 00:14:43]} b4 {[%emt 00:00:11] [%clk 00:14:33]} 5. Nc2
{[%emt 00:00:02] [%clk 00:14:50]} c5 {[%emt 00:00:14] [%clk 00:14:29]} 6. a3
{[%emt 00:00:43] [%clk 00:14:17]} bxa3 {[%emt 00:01:58] [%clk 00:12:42]} 7. Rxa3
{[%emt 00:00:08] [%clk 00:14:19]} Nc6 {[%emt 00:00:37] [%clk 00:12:15]} 8. Bg2
{[%emt 00:00:04] [%clk 00:14:24]} Rb8 {[%emt 00:00:13] [%clk 00:12:12]} 9. d4
{[%emt 00:04:07] [%clk 00:10:27]} cxd4 {[%emt 00:00:28] [%clk 00:11:55]} 10.
Ncxd4 {[%emt 00:02:03] [%clk 00:08:33]} Nxd4 {[%emt 00:00:42] [%clk 00:11:23]}
11. Qxd4 {[%emt 00:00:02] [%clk 00:08:41]} e6 {[%emt 00:00:02] [%clk 00:11:31]}
12. c5 {[%emt 00:01:11] [%clk 00:07:40]} Rb5 {[%emt 00:00:38] [%clk 00:11:02]}
13. Rc3 {[%emt 00:03:26] [%clk 00:04:24]} Nd5 {[%emt 00:00:48] [%clk 00:10:24]}
14. Rc4 {[%emt 00:00:20] [%clk 00:04:14]} Qc7 {[%emt 00:05:14] [%clk 00:05:21]}
15. c6 {[%emt 00:03:00] [%clk 00:01:23]} dxc6 {[%emt 00:00:24] [%clk 00:05:08]}
16. O-O {[%emt 00:00:02] [%clk 00:01:30]} c5 {[%emt 00:00:16] [%clk 00:05:03]}
17. Qd3 {[%emt 00:01:03] [%clk 00:00:37]} Be7 {[%emt 00:00:07] [%clk 00:05:05]}
18. Rg4 {[%emt 00:00:06] [%clk 00:00:41]} O-O {[%emt 00:00:35] [%clk 00:04:41]}
19. e4 {[%emt 00:00:16] [%clk 00:00:35]} c4 {[%emt 00:00:43] [%clk 00:04:08]}
20. Qd4 {[%emt 00:00:12] [%clk 00:00:33]} e5 {[%emt 00:00:07] [%clk 00:04:11]}
21. Rxg7+ {[%emt 00:00:23] [%clk 00:00:20]} Kxg7 {[%emt 00:00:14] [%clk
00:04:06]} 22. Nxe5 {[%emt 00:00:11] [%clk 00:00:19]} Bf6 {[%emt 00:00:20] [%clk
00:03:57]} 23. f4 {[%emt 00:00:07] [%clk 00:00:22]} Ne7 {[%emt 00:00:24] [%clk
00:03:42]} 24. Kh1 {[%emt 00:00:04] [%clk 00:00:28]} Ng6 {[%emt 00:00:17] [%clk
00:03:35]} 25. Qe3 {[%emt 00:00:19] [%clk 00:00:19]} Rb3 {[%emt 00:00:50] [%clk
00:02:56]} 26. Qe2 {[%emt 00:00:15] [%clk 00:00:14]} Nxe5 {[%emt 00:00:27] [%clk
00:02:39]} 27. fxe5 {[%emt 00:00:03] [%clk 00:00:21]} Qxe5 {[%emt 00:00:13]
[%clk 00:02:36]} 28. Bf4 {[%emt 00:00:12] [%clk 00:00:18]} Qxb2 {[%emt 00:00:57]
[%clk 00:01:49]} 29. Qh5 {[%emt 00:00:06] [%clk 00:00:22]} Rb5 {[%emt 00:00:35]
[%clk 00:01:24]} 30. e5 {[%emt 00:00:09] [%clk 00:00:22]} Rxe5 {[%emt 00:00:40]
[%clk 00:00:54]} 31. Qh6+ {[%emt 00:00:04] [%clk 00:00:28]} Kg8 {[%clk
00:01:04]} 32. Qxf6 {[%emt 00:00:02] [%clk 00:00:35]} Re2 {[%emt 00:00:04] [%clk
00:01:10]} 33. Qg5+ {[%emt 00:00:32] [%clk 00:00:13]} Kh8 {[%emt 00:00:22] [%clk
00:00:58]} 34. Bf3 {[%emt 00:00:02] [%clk 00:00:22]} Re6 {[%emt 00:00:19] [%clk
00:00:49]} 35. Qc5 {[%emt 00:00:10] [%clk 00:00:21]} Rfe8 {[%emt 00:00:06] [%clk
00:00:54]} 36. Bc1 {[%emt 00:00:16] [%clk 00:00:14]} Qb5 {[%emt 00:00:26] [%clk
00:00:39]} 37. Qd4+ {[%emt 00:00:05] [%clk 00:00:19]} Qe5 {[%emt 00:00:02] [%clk
00:00:47]} 38. Qxc4 {[%emt 00:00:04] [%clk 00:00:24]} Kg8 {[%emt 00:00:05] [%clk
00:00:52]} 39. Qb3 {[%emt 00:00:18] [%clk 00:00:17]} Qb5 {[%emt 00:00:02] [%clk
00:01:00]} 40. Qd1 {[%emt 00:00:06] [%clk 00:00:21]} Qxf1+ {[%emt 00:00:01]
[%clk 00:01:09]} 41. Qxf1 {[%clk 00:00:30]} Re1 {[%emt 00:00:01] [%clk
00:01:18]} 42. Kg2 {[%emt 00:00:03] [%clk 00:00:37]} Bh3+ {[%emt 00:00:04] [%clk
00:01:24]} 43. Kxh3 {[%emt 00:00:02] [%clk 00:00:44]} Rxf1 {[%emt 00:00:01]
[%clk 00:01:33]} 0-1

[Site "Europe Echecs"]

[Event "Championnat d'Europe Rapide"]
[Date "2024.12.08"]
[White "Samunenkov, Ihor"]
[Black "Rodriguez Fontecha, Marcos"]
[WhiteElo "2543"]
[BlackElo "2278"]
[Round "8.35"]
[Result "1-0"]
[TimeControl "900+10"]

1. d4 {[%emt 00:00:03] [%clk 00:15:16]} d5 {[%emt 00:00:02] [%clk 00:15:18]} 2.
Bf4 {[%emt 00:00:04] [%clk 00:15:23]} Nf6 {[%emt 00:00:44] [%clk 00:14:44]} 3.
e3 {[%emt 00:00:04] [%clk 00:15:29]} g6 {[%emt 00:00:01] [%clk 00:14:52]} 4. Nf3
{[%emt 00:00:22] [%clk 00:15:17]} Bg7 {[%emt 00:00:02] [%clk 00:15:00]} 5. Nbd2
{[%emt 00:00:43] [%clk 00:14:46]} O-O {[%emt 00:00:06] [%clk 00:15:04]} 6. h3
{[%emt 00:00:04] [%clk 00:14:51]} c6 {[%emt 00:00:30] [%clk 00:14:44]} 7. Bd3
{[%emt 00:00:23] [%clk 00:14:37]} Nbd7 {[%emt 00:00:57] [%clk 00:13:58]} 8. O-O
{[%emt 00:00:31] [%clk 00:14:16]} b5 {[%emt 00:00:36] [%clk 00:13:33]} 9. a4
{[%emt 00:04:33] [%clk 00:09:52]} b4 {[%emt 00:00:04] [%clk 00:13:39]} 10. e4
{[%emt 00:00:54] [%clk 00:09:08]} dxe4 {[%emt 00:00:50] [%clk 00:12:59]} 11.
Nxe4 {[%emt 00:00:04] [%clk 00:09:14]} Nd5 {[%emt 00:00:03] [%clk 00:13:06]} 12.
Bh2 {[%emt 00:00:32] [%clk 00:08:51]} a5 {[%emt 00:01:20] [%clk 00:11:56]} 13.
Qe2 {[%emt 00:00:43] [%clk 00:08:18]} Qb6 {[%emt 00:02:11]} 14. c4 {[%clk
00:06:46]} bxc3 {[%emt 00:01:25] [%clk 00:10:24]} 15. bxc3 {[%emt 00:00:02]
[%clk 00:06:53]} Ba6 {[%emt 00:03:43] [%clk 00:06:51]} 16. Rfb1 {[%emt 00:00:05]
[%clk 00:06:58]} Bxd3 {[%emt 00:00:30] [%clk 00:06:31]} 17. Qxd3 {[%emt
00:00:03] [%clk 00:07:05]} Qa6 {[%emt 00:01:14] [%clk 00:05:28]} 18. Qxa6 {[%emt
00:00:27] [%clk 00:06:48]} Rxa6 {[%emt 00:00:05] [%clk 00:05:33]} 19. Rb7 {[%emt
00:00:04] [%clk 00:06:53]} N5f6 {[%emt 00:03:42] [%clk 00:02:01]} 20. Nfd2
{[%emt 00:01:49] [%clk 00:05:14]} c5 {[%emt 00:00:08] [%clk 00:02:02]} 21. dxc5
{[%emt 00:01:59] [%clk 00:03:26]} Rc6 {[%emt 00:00:42] [%clk 00:01:31]} 22.
Nxf6+ {[%emt 00:02:08] [%clk 00:01:27]} Nxf6 {[%emt 00:00:03] [%clk 00:01:38]}
23. Nb3 {[%emt 00:00:02] [%clk 00:01:35]} Nd5 {[%emt 00:00:49] [%clk 00:00:59]}
24. Re1 {[%emt 00:01:06] [%clk 00:00:39]} Bxc3 {[%emt 00:00:13] [%clk 00:00:55]}
25. Rd1 {[%emt 00:00:07] [%clk 00:00:42]} e6 {[%emt 00:00:14] [%clk 00:00:51]}
26. Bd6 {[%emt 00:00:15] [%clk 00:00:37]} Rfc8 {[%emt 00:00:31] [%clk 00:00:31]}
27. Ra7 {[%emt 00:00:02] [%clk 00:00:45]} Rd8 {[%emt 00:00:27] [%clk 00:00:14]}
28. Nxa5 {[%emt 00:00:18] [%clk 00:00:36]} Bxa5 {[%emt 00:00:03] [%clk
00:00:20]} 29. Rxa5 {[%emt 00:00:02] [%clk 00:00:44]} Nc3 {[%emt 00:00:04] [%clk
00:00:25]} 30. Re1 {[%emt 00:00:05] [%clk 00:00:50]} Rcc8 {[%emt 00:00:15] [%clk
00:00:21]} 31. f3 {[%emt 00:00:44] [%clk 00:00:17]} Ra8 {[%emt 00:00:16] [%clk
00:00:15]} 32. Rxa8 {[%emt 00:00:04] [%clk 00:00:22]} Rxa8 {[%clk 00:00:25]} 33.
c6 {[%emt 00:00:08] [%clk 00:00:24]} Rc8 {[%emt 00:00:18] [%clk 00:00:17]} 34.
c7 {[%emt 00:00:06] [%clk 00:00:28]} Nxa4 {[%emt 00:00:05] [%clk 00:00:22]} 35.
Rb1 {[%emt 00:00:02] [%clk 00:00:36]} 1-0

[Site "Europe Echecs"]

[Event "Championnat d'Europe Rapide"]
[Date "2024.12.08"]
[White "Zlatkov, Anton"]
[Black "Ragger, Markus"]
[WhiteElo "2324"]
[BlackElo "2577"]
[Round "8.36"]
[Result "0-1"]
[TimeControl "900+10"]

1. e4 {[%emt 00:00:01] [%clk 00:15:19]} e5 {[%emt 00:00:02] [%clk 00:15:19]} 2.
Nf3 {[%clk 00:15:27]} Nc6 {[%emt 00:00:02] [%clk 00:15:28]} 3. Bc4 {[%clk
00:15:36]} Nf6 {[%emt 00:00:01] [%clk 00:15:37]} 4. d3 {[%clk 00:15:45]} d5
{[%emt 00:00:01] [%clk 00:15:46]} 5. exd5 {[%emt 00:00:02] [%clk 00:15:54]} Nxd5
{[%emt 00:00:01] [%clk 00:15:55]} 6. O-O {[%emt 00:00:01] [%clk 00:16:02]} Nb6
{[%emt 00:00:02] [%clk 00:16:03]} 7. Bb5 {[%emt 00:00:01] [%clk 00:16:11]} Bd6
{[%emt 00:00:02] [%clk 00:16:11]} 8. Nxe5 {[%emt 00:00:30] [%clk 00:15:52]} Bxe5
{[%emt 00:00:01] [%clk 00:16:20]} 9. Bxc6+ {[%emt 00:00:01] [%clk 00:16:01]}
bxc6 {[%emt 00:00:02] [%clk 00:16:28]} 10. Re1 {[%emt 00:00:01] [%clk 00:16:09]}
Qe7 {[%emt 00:00:09] [%clk 00:16:29]} 11. Kh1 {[%emt 00:00:01] [%clk 00:16:18]}
Bb7 {[%emt 00:00:01] [%clk 00:16:38]} 12. d4 {[%emt 00:01:07] [%clk 00:15:21]}
O-O-O {[%emt 00:01:06] [%clk 00:15:41]} 13. Qg4+ {[%emt 00:00:56] [%clk
00:14:35]} Kb8 {[%emt 00:03:51] [%clk 00:12:01]} 14. dxe5 {[%emt 00:02:10] [%clk
00:12:35]} h5 {[%emt 00:00:04] [%clk 00:12:07]} 15. Qe2 {[%clk 00:12:44]} h4
{[%emt 00:00:24] [%clk 00:11:54]} 16. h3 {[%clk 00:12:53]} f5 {[%emt 00:01:15]
[%clk 00:10:49]} 17. Nc3 {[%emt 00:01:39] [%clk 00:11:24]} g5 {[%emt 00:00:11]
[%clk 00:10:48]} 18. f3 {[%emt 00:04:24] [%clk 00:07:11]} c5 {[%emt 00:00:17]
[%clk 00:10:40]} 19. a4 {[%emt 00:00:14] [%clk 00:07:08]} g4 {[%emt 00:00:29]
[%clk 00:10:20]} 20. a5 {[%emt 00:00:52] [%clk 00:06:27]} gxf3 {[%emt 00:01:10]
[%clk 00:09:20]} 21. gxf3 {[%emt 00:00:01] [%clk 00:06:36]} Rhg8 {[%emt
00:00:21] [%clk 00:09:09]} 22. Bf4 {[%emt 00:01:48] [%clk 00:04:58]} Rd4 {[%emt
00:00:25] [%clk 00:08:54]} 23. Bh2 {[%emt 00:01:21] [%clk 00:03:47]} Rd2 {[%emt
00:00:16] [%clk 00:08:47]} 24. Qf1 {[%emt 00:00:37] [%clk 00:03:20]} Nc4 {[%emt
00:03:13] [%clk 00:05:44]} 25. a6 {[%emt 00:01:01] [%clk 00:02:30]} Bc6 {[%emt
00:00:33] [%clk 00:05:20]} 26. Re2 {[%emt 00:00:22] [%clk 00:02:19]} Qg5 {[%emt
00:01:12] [%clk 00:04:17]} 27. Qf2 {[%emt 00:00:11] [%clk 00:02:18]} Rxe2 {[%emt
00:01:14] [%clk 00:03:13]} 28. Nxe2 {[%emt 00:00:01] [%clk 00:02:27]} Qd2 {[%emt
00:01:44] [%clk 00:01:40]} 29. Rg1 {[%emt 00:00:08] [%clk 00:02:28]} Rxg1+
{[%emt 00:00:44] [%clk 00:01:06]} 30. Bxg1 {[%emt 00:00:07] [%clk 00:02:31]}
Nxe5 {[%emt 00:00:08] [%clk 00:01:08]} 31. Qxc5 {[%emt 00:01:31] [%clk
00:01:10]} Bxf3+ {[%emt 00:00:02] [%clk 00:01:16]} 32. Kh2 {[%clk 00:01:19]}
Qxe2+ {[%emt 00:00:02] [%clk 00:01:24]} 33. Bf2 {[%clk 00:01:28]} Kc8 {[%emt
00:00:47] [%clk 00:00:48]} 34. Qf8+ {[%emt 00:00:17] [%clk 00:01:21]} Kd7 {[%clk
00:00:57]} 35. Qxf5+ {[%emt 00:00:02] [%clk 00:01:30]} Kc6 {[%emt 00:00:32]
[%clk 00:00:35]} 36. Qe6+ {[%emt 00:00:10] [%clk 00:01:29]} Kb5 {[%clk
00:00:45]} 37. Qb3+ {[%emt 00:00:39] [%clk 00:01:01]} Kxa6 {[%emt 00:00:09]
[%clk 00:00:45]} 38. Qa2+ {[%emt 00:00:05] [%clk 00:01:05]} Kb7 {[%emt 00:00:21]
[%clk 00:00:34]} 39. Qb3+ {[%emt 00:00:02] [%clk 00:01:13]} Kc6 {[%emt 00:00:05]
[%clk 00:00:39]} 40. Qe6+ {[%emt 00:00:01] [%clk 00:01:23]} Kb7 {[%emt 00:00:10]
[%clk 00:00:40]} 41. Qb3+ {[%emt 00:00:01] [%clk 00:01:32]} Kc8 {[%clk
00:00:48]} 42. Qg8+ {[%emt 00:00:04] [%clk 00:01:38]} Kd7 {[%emt 00:00:02] [%clk
00:00:56]} 43. Qg7+ {[%emt 00:00:45] [%clk 00:01:03]} Kc6 {[%emt 00:00:01] [%clk
00:01:05]} 44. Qf6+ {[%clk 00:01:12]} Kb7 {[%emt 00:00:04] [%clk 00:01:11]} 45.
Qxh4 {[%emt 00:00:02] [%clk 00:01:21]} Be4 {[%emt 00:00:10] [%clk 00:01:10]} 46.
Qf4 {[%emt 00:00:04] [%clk 00:01:26]} Qxc2 {[%emt 00:00:09] [%clk 00:01:12]} 47.
Kg3 {[%emt 00:00:11] [%clk 00:01:25]} Qd3+ {[%emt 00:00:12] [%clk 00:01:09]} 48.
Kh2 {[%emt 00:00:06] [%clk 00:01:29]} Qf3 {[%emt 00:00:35] [%clk 00:00:45]} 0-1

[Site "Europe Echecs"]

[Event "Championnat d'Europe Rapide"]
[Date "2024.12.08"]
[White "Pichot, Alan"]
[Black "Reprintsev, Alexander"]
[WhiteElo "2637"]
[BlackElo "2230"]
[Round "8.37"]
[Result "1-0"]
[TimeControl "900+10"]

1. e4 {[%emt 00:00:02] [%clk 00:15:17]} d5 {[%emt 00:00:03] [%clk 00:15:18]} 2.
exd5 {[%emt 00:00:03] [%clk 00:15:24]} Qxd5 {[%emt 00:00:01] [%clk 00:15:26]} 3.
Nc3 {[%emt 00:00:02] [%clk 00:15:32]} Qd6 {[%emt 00:00:12] [%clk 00:15:24]} 4.
d4 {[%emt 00:00:03] [%clk 00:15:38]} Nf6 {[%emt 00:00:02] [%clk 00:15:32]} 5.
Nf3 {[%emt 00:00:02] [%clk 00:15:47]} c6 {[%emt 00:00:07] [%clk 00:15:35]} 6.
Ne5 {[%emt 00:00:35] [%clk 00:15:21]} Be6 {[%emt 00:00:51] [%clk 00:14:54]} 7.
Bf4 {[%emt 00:00:17] [%clk 00:15:14]} Qd8 {[%emt 00:00:01] [%clk 00:15:03]} 8.
Qd2 {[%emt 00:00:15] [%clk 00:15:09]} Nbd7 {[%emt 00:00:11] [%clk 00:15:01]} 9.
O-O-O {[%emt 00:00:06] [%clk 00:15:13]} Nxe5 {[%emt 00:00:12] [%clk 00:14:59]}
10. Bxe5 {[%emt 00:00:06] [%clk 00:15:17]} Qa5 {[%emt 00:00:32] [%clk 00:14:37]}
11. Bd3 {[%emt 00:00:56] [%clk 00:14:31]} Bxa2 {[%emt 00:01:24] [%clk 00:13:24]}
12. Nxa2 {[%emt 00:06:00] [%clk 00:08:41]} Qxa2 {[%emt 00:00:01] [%clk
00:13:32]} 13. Qb4 {[%emt 00:00:02] [%clk 00:08:49]} b5 {[%emt 00:03:12] [%clk
00:10:30]} 14. Rhe1 {[%emt 00:02:26] [%clk 00:06:33]} e6 {[%emt 00:00:53] [%clk
00:09:47]} 15. Qc3 {[%emt 00:00:01] [%clk 00:06:42]} Qa1+ {[%emt 00:01:59] [%clk
00:07:59]} 16. Kd2 {[%emt 00:00:01] [%clk 00:06:50]} Qa6 {[%emt 00:00:01] [%clk
00:08:07]} 17. Bxf6 {[%emt 00:03:07] [%clk 00:03:53]} gxf6 {[%emt 00:00:02]
[%clk 00:08:15]} 18. Ke2 {[%emt 00:00:15] [%clk 00:03:48]} Qb6 {[%emt 00:02:42]
[%clk 00:05:44]} 19. Kf1 {[%emt 00:00:02] [%clk 00:03:56]} Be7 {[%emt 00:02:37]
[%clk 00:03:17]} 20. Be4 {[%emt 00:00:35] [%clk 00:03:30]} Rc8 {[%emt 00:00:03]
[%clk 00:03:25]} 21. d5 {[%emt 00:00:04] [%clk 00:03:36]} b4 {[%emt 00:00:05]
[%clk 00:03:29]} 22. Qc4 {[%emt 00:00:28] [%clk 00:03:18]} Qb5 {[%emt 00:00:02]
[%clk 00:03:38]} 23. Qxb5 {[%emt 00:00:02] [%clk 00:03:26]} cxb5 {[%clk
00:03:47]} 24. d6 {[%emt 00:00:01] [%clk 00:03:35]} Rc5 {[%emt 00:01:26] [%clk
00:02:32]} 25. dxe7 {[%emt 00:00:05] [%clk 00:03:39]} Kxe7 {[%clk 00:02:41]} 26.
Ra1 {[%emt 00:00:06] [%clk 00:03:43]} Rc7 {[%emt 00:00:04] [%clk 00:02:48]} 27.
Ra5 {[%emt 00:00:03] [%clk 00:03:51]} Rb8 {[%emt 00:00:02] [%clk 00:02:56]} 28.
Rea1 {[%emt 00:00:02] [%clk 00:03:59]} 1-0

[Site "Europe Echecs"]

[Event "Championnat d'Europe Rapide"]
[Date "2024.12.08"]
[White "Djukic, Nikola"]
[Black "Guid, Matej"]
[WhiteElo "2493"]
[BlackElo "2266"]
[Round "8.38"]
[Result "1-0"]
[TimeControl "900+10"]

1. e4 {[%emt 00:00:01] [%clk 00:15:17]} c5 {[%emt 00:00:08] [%clk 00:15:13]} 2.
Nf3 {[%emt 00:00:02] [%clk 00:15:25]} e6 {[%clk 00:15:22]} 3. d4 {[%emt
00:00:04] [%clk 00:15:31]} cxd4 {[%emt 00:00:02] [%clk 00:15:31]} 4. Nxd4 {[%emt
00:00:02] [%clk 00:15:39]} Nc6 {[%emt 00:00:01] [%clk 00:15:40]} 5. Nc3 {[%emt
00:00:03] [%clk 00:15:47]} Qc7 {[%clk 00:15:48]} 6. Be2 {[%emt 00:00:07] [%clk
00:15:50]} a6 {[%emt 00:00:02] [%clk 00:15:56]} 7. O-O {[%emt 00:00:04] [%clk
00:15:55]} Nf6 {[%emt 00:00:03] [%clk 00:16:03]} 8. Be3 {[%emt 00:00:06] [%clk
00:15:59]} Bb4 {[%emt 00:00:07] [%clk 00:16:07]} 9. Na4 {[%emt 00:00:02] [%clk
00:16:07]} Be7 {[%emt 00:00:13] [%clk 00:16:03]} 10. Nxc6 {[%emt 00:00:14] [%clk
00:16:03]} bxc6 {[%emt 00:00:04] [%clk 00:16:09]} 11. Nb6 {[%emt 00:00:02] [%clk
00:16:11]} Rb8 {[%emt 00:00:05] [%clk 00:16:14]} 12. Nxc8 {[%emt 00:00:03] [%clk
00:16:18]} Qxc8 {[%emt 00:00:03] [%clk 00:16:21]} 13. Bd4 {[%emt 00:00:06] [%clk
00:16:22]} c5 {[%emt 00:00:23] [%clk 00:16:08]} 14. Be5 {[%emt 00:00:02] [%clk
00:16:30]} Rb6 {[%emt 00:00:05] [%clk 00:16:13]} 15. Qd3 {[%emt 00:00:20] [%clk
00:16:20]} d6 {[%emt 00:01:08] [%clk 00:15:15]} 16. Bc3 {[%emt 00:00:02] [%clk
00:16:28]} O-O {[%emt 00:00:16] [%clk 00:15:09]} 17. b3 {[%emt 00:00:03] [%clk
00:16:36]} Nd7 {[%emt 00:01:00] [%clk 00:14:18]} 18. Rad1 {[%emt 00:01:55] [%clk
00:14:51]} Bf6 {[%emt 00:00:11] [%clk 00:14:18]} 19. Ba5 {[%emt 00:00:02] [%clk
00:14:59]} Rc6 {[%emt 00:02:22] [%clk 00:12:06]} 20. f4 {[%emt 00:00:02] [%clk
00:15:07]} Bd8 {[%emt 00:00:30] [%clk 00:11:47]} 21. Bc3 {[%emt 00:01:53] [%clk
00:13:23]} c4 {[%emt 00:01:13] [%clk 00:10:44]} 22. bxc4 {[%emt 00:02:35] [%clk
00:10:59]} Nb6 {[%emt 00:00:37] [%clk 00:10:17]} 23. c5 {[%emt 00:06:13] [%clk
00:04:56]} Rxc5 {[%emt 00:05:10] [%clk 00:05:17]} 24. Bb4 {[%emt 00:00:02] [%clk
00:05:04]} Rxc2 {[%emt 00:00:02] [%clk 00:05:25]} 25. Bxd6 {[%emt 00:00:02]
[%clk 00:05:12]} Re8 {[%emt 00:00:05] [%clk 00:05:30]} 26. Qxa6 {[%emt 00:01:03]
[%clk 00:04:19]} Qxa6 {[%emt 00:01:37] [%clk 00:04:04]} 27. Bxa6 {[%emt
00:00:02] [%clk 00:04:26]} Na4 {[%emt 00:00:07] [%clk 00:04:06]} 28. a3 {[%emt
00:01:47] [%clk 00:02:50]} Nc3 {[%emt 00:01:43] [%clk 00:02:33]} 29. Rde1 {[%emt
00:00:18] [%clk 00:02:41]} Bb6+ {[%emt 00:00:03] [%clk 00:02:41]} 30. Kh1 {[%emt
00:00:02] [%clk 00:02:49]} Bf2 {[%emt 00:00:06] [%clk 00:02:45]} 31. Rxf2 {[%emt
00:01:17] [%clk 00:01:42]} Rxf2 {[%emt 00:00:04] [%clk 00:02:51]} 32. Kg1 {[%emt
00:00:03] [%clk 00:01:49]} Rd2 {[%emt 00:01:26] [%clk 00:01:36]} 33. Bb4 {[%emt
00:00:02] [%clk 00:01:57]} Ra8 {[%emt 00:00:08] [%clk 00:01:37]} 34. Bf1 {[%emt
00:00:59] [%clk 00:01:09]} Rc8 {[%emt 00:00:22] [%clk 00:01:25]} 35. g3 {[%emt
00:00:30] [%clk 00:00:49]} h5 {[%emt 00:00:06] [%clk 00:01:29]} 36. Re3 {[%emt
00:00:21] [%clk 00:00:38]} Rc2 {[%emt 00:00:16] [%clk 00:01:23]} 37. Ba6 {[%emt
00:00:02] [%clk 00:00:46]} Rc6 {[%emt 00:00:07] [%clk 00:01:26]} 38. Bd3 {[%emt
00:00:10] [%clk 00:00:45]} Rc1+ {[%emt 00:00:03] [%clk 00:01:33]} 39. Kg2 {[%emt
00:00:01] [%clk 00:00:53]} Na2 {[%emt 00:00:24] [%clk 00:01:19]} 40. Bd2 {[%emt
00:00:04] [%clk 00:00:59]} Rd1 {[%emt 00:00:10] [%clk 00:01:19]} 41. Ba5 {[%emt
00:00:17] [%clk 00:00:52]} Nc1 {[%emt 00:00:22] [%clk 00:01:07]} 42. Bb5 {[%emt
00:00:15] [%clk 00:00:47]} Rc2+ {[%emt 00:00:02] [%clk 00:01:15]} 43. Kf3 {[%emt
00:00:02] [%clk 00:00:55]} Nb3 {[%emt 00:00:12] [%clk 00:01:13]} 44. Rxb3 {[%emt
00:00:03] [%clk 00:01:03]} Rxh2 {[%emt 00:00:04] [%clk 00:01:18]} 45. Be2 {[%emt
00:00:20] [%clk 00:00:52]} Rg1 {[%emt 00:00:07] [%clk 00:01:21]} 46. Bb6 {[%emt
00:00:13] [%clk 00:00:49]} Ra1 {[%emt 00:00:04] [%clk 00:01:26]} 47. Bf2 {[%emt
00:00:16] [%clk 00:00:45]} Ra2 {[%emt 00:00:10] [%clk 00:01:25]} 48. Re3 {[%emt
00:00:03] [%clk 00:00:51]} f6 {[%emt 00:00:13] [%clk 00:01:23]} 49. Bg1 {[%emt
00:00:03] [%clk 00:00:58]} Rhxe2 {[%emt 00:00:16] [%clk 00:01:17]} 50. Rxe2
{[%emt 00:00:02] [%clk 00:01:07]} Rxa3+ {[%clk 00:01:26]} 51. Re3 {[%emt
00:00:19] [%clk 00:00:59]} Ra2 {[%emt 00:00:09] [%clk 00:01:26]} 52. Rb3 {[%emt
00:00:01] [%clk 00:01:07]} 1-0

[Site "Europe Echecs"]

[Event "Championnat d'Europe Rapide"]
[Date "2024.12.08"]
[White "Baidetskyi, Valentin"]
[Black "Gaponenko, Inna"]
[WhiteElo "2519"]
[BlackElo "2343"]
[Round "8.39"]
[Result "1-0"]
[TimeControl "900+10"]

1. e4 {[%emt 00:00:02] [%clk 00:15:18]} c5 {[%clk 00:15:19]} 2. Nf3 {[%emt
00:00:01] [%clk 00:15:27]} g6 {[%clk 00:15:28]} 3. Bc4 {[%emt 00:00:13] [%clk
00:15:23]} Bg7 {[%emt 00:00:31] [%clk 00:15:07]} 4. O-O {[%emt 00:00:04] [%clk
00:15:30]} Nc6 {[%emt 00:00:17] [%clk 00:15:01]} 5. c3 {[%emt 00:00:03] [%clk
00:15:37]} e6 {[%emt 00:00:01] [%clk 00:15:10]} 6. Re1 {[%emt 00:00:18] [%clk
00:15:29]} Nge7 {[%emt 00:00:45]} 7. d4 {[%clk 00:15:00]} cxd4 {[%emt 00:00:07]
[%clk 00:15:16]} 8. cxd4 {[%emt 00:00:03] [%clk 00:15:07]} d5 {[%emt 00:00:03]
[%clk 00:15:24]} 9. Bb3 {[%emt 00:00:25] [%clk 00:14:52]} dxe4 {[%emt 00:00:30]
[%clk 00:15:03]} 10. Rxe4 {[%emt 00:00:02] [%clk 00:15:00]} O-O {[%emt 00:00:04]
[%clk 00:15:09]} 11. Nc3 {[%emt 00:00:04] [%clk 00:15:07]} h6 {[%emt 00:04:14]
[%clk 00:11:05]} 12. Bd2 {[%emt 00:05:05] [%clk 00:10:12]} b6 {[%emt 00:06:01]
[%clk 00:05:14]} 13. Qc1 {[%emt 00:00:05] [%clk 00:10:17]} Kh7 {[%emt 00:00:01]
[%clk 00:05:23]} 14. Bc2 {[%emt 00:08:24] [%clk 00:02:02]} Nf5 {[%emt 00:00:22]
[%clk 00:05:11]} 15. Ne2 {[%emt 00:00:04] [%clk 00:02:08]} Bb7 {[%emt 00:00:31]
[%clk 00:04:51]} 16. Bc3 {[%emt 00:00:32] [%clk 00:01:46]} Nce7 {[%emt 00:00:32]
[%clk 00:04:29]} 17. Rg4 {[%emt 00:00:15] [%clk 00:01:41]} Bxf3 {[%emt 00:01:20]
[%clk 00:03:19]} 18. gxf3 {[%emt 00:00:01] [%clk 00:01:50]} Nd5 {[%emt 00:00:01]
[%clk 00:03:28]} 19. Qf1 {[%emt 00:00:11] [%clk 00:01:49]} Rc8 {[%emt 00:00:50]
[%clk 00:02:49]} 20. Qh3 {[%emt 00:00:05] [%clk 00:01:53]} b5 {[%emt 00:00:08]
[%clk 00:02:51]} 21. a3 {[%emt 00:00:07] [%clk 00:01:57]} a5 {[%clk 00:03:00]}
22. Bd3 {[%emt 00:00:35] [%clk 00:01:32]} Nxc3 {[%emt 00:01:40] [%clk 00:01:30]}
23. bxc3 {[%emt 00:00:01] [%clk 00:01:41]} Qd5 {[%emt 00:00:01] [%clk 00:01:39]}
24. Rb1 {[%emt 00:00:13] [%clk 00:01:38]} Qa2 {[%clk 00:01:48]} 25. Rxb5 {[%emt
00:00:10] [%clk 00:01:39]} Qxa3 {[%emt 00:00:01] [%clk 00:01:56]} 26. d5 {[%emt
00:00:39] [%clk 00:01:10]} Qa1+ {[%emt 00:00:52] [%clk 00:01:14]} 27. Kg2 {[%emt
00:00:02] [%clk 00:01:17]} Qd1 {[%emt 00:00:02] [%clk 00:01:22]} 28. f4 {[%emt
00:00:37] [%clk 00:00:51]} a4 {[%emt 00:00:21] [%clk 00:01:11]} 29. dxe6 {[%emt
00:00:25] [%clk 00:00:35]} fxe6 {[%emt 00:00:01] [%clk 00:01:21]} 30. Rb7 {[%emt
00:00:20] [%clk 00:00:25]} a3 {[%emt 00:00:20] [%clk 00:01:10]} 31. Rxg6 {[%emt
00:00:17] [%clk 00:00:18]} Kxg6 {[%emt 00:00:50] [%clk 00:00:30]} 32. Bxf5+
{[%emt 00:00:14] [%clk 00:00:15]} Kf6 {[%emt 00:00:27] [%clk 00:00:13]} 33. Be4
{[%emt 00:00:11] [%clk 00:00:13]} 1-0

[Site "Europe Echecs"]